bitfinex/quotes_SOLUSD_20250815
["timestamp","ask_amount","ask_price","bid_price","bid_amount"]
[1755253441037,8.54436441,195.63,195.6,14.07960433]
[1755253441355,8.54436441,195.63,195.62,13.32960433]
[1755253441539,3.43267398,195.63,195.62,14.04960433]
[1755253441927,0.06,195.65,195.62,14.04960433]
[1755253442127,0.06,195.65,195.64,13.32960433]
[1755253442642,0.06,195.65,195.64,14.04960433]
[1755253442845,3.49293387,195.65,195.64,14.04960433]
[1755253444557,0.06,195.65,195.64,14.04960433]
[1755253444746,5.1711679,195.65,195.64,13.32960433]
[1755253446256,0.06,195.65,195.64,14.04960433]
[1755253447043,0.06,195.65,195.64,13.32960433]
[1755253447231,0.06,195.65,195.64,14.04960433]
[1755253450950,0.06,195.65,195.64,13.32960433]
[1755253451141,0.06,195.65,195.64,39.32960433]
[1755253451336,0.06,195.65,195.64,40.04960433]
[1755253451953,0.06,195.65,195.64,39.32960433]
[1755253452556,3.49439685,195.65,195.64,39.32960433]
[1755253453244,3.49439685,195.65,195.64,13.32960433]
[1755253453544,4.16439685,195.65,195.63,13.32960433]
[1755253453873,8.60556475,195.65,195.64,13.32960433]
[1755253454045,9.27556475,195.65,195.63,13.32960433]
[1755253454244,0.67,195.64,195.62,0.03]
[1755253454757,0.67,195.63,195.62,0.03]
[1755253455147,4.10439685,195.63,195.62,0.03]
[1755253457069,9.21608728,195.63,195.62,0.03]
[1755253457271,9.21608728,195.63,195.6,0.03]
[1755253457272,0.14216157,195.62,195.6,0.03]
[1755253457456,0.67,195.61,195.6,0.03]
[1755253457875,4.10439685,195.61,195.6,0.03]
[1755253459058,9.21660992,195.61,195.6,0.03]
[1755253459577,8.54660992,195.61,195.6,13.35960433]
[1755253459778,9.21660992,195.61,195.6,0.03]
[1755253459975,22.68837582,195.61,195.6,1e-08]
[1755253460475,9.35877149,195.61,195.6,1e-08]
[1755253461980,8.68877149,195.61,195.6,1e-08]
[1755253462171,8.54660992,195.61,195.6,14.04960434]
[1755253462678,8.54660992,195.61,195.6,1e-08]
[1755253462857,9.35877149,195.61,195.6,1e-08]
[1755253463259,8.68877149,195.61,195.6,1e-08]
[1755253463678,9.35877149,195.61,195.6,1e-08]
[1755253463891,8.54660992,195.61,195.6,1e-08]
[1755253464867,8.68877149,195.61,195.6,1e-08]
[1755253465063,9.35877149,195.61,195.6,1e-08]
[1755253465683,8.68877149,195.61,195.6,1e-08]
[1755253466065,8.54660992,195.61,195.6,14.04960434]
[1755253466685,8.54660992,195.61,195.6,1e-08]
[1755253466862,9.21660992,195.61,195.6,1e-08]
[1755253467063,8.54660992,195.61,195.6,1e-08]
[1755253467396,8.54660992,195.61,195.6,14.04960434]
[1755253468485,3.43439685,195.61,195.6,14.04960434]
[1755253468671,3.43439685,195.61,195.6,8.95198312]
[1755253470167,0.06,195.62,195.6,8.95198312]
[1755253470360,0.06,195.62,195.61,34.95198311]
[1755253471395,3.49480637,195.62,195.61,34.95198311]
[1755253471559,3.49480637,195.62,195.61,34.23198311]
[1755253472087,3.49480637,195.62,195.61,34.88198311]
[1755253472458,0.06,195.62,195.61,34.88198311]
[1755253475272,0.06,195.65,195.61,71.40198311]
[1755253475487,0.06,195.65,195.64,8.23198311]
[1755253475871,0.06,195.65,195.64,8.88198311]
[1755253482214,0.06,195.65,195.64,39.99341226]
[1755253482389,0.06,195.65,195.64,34.88198311]
[1755253482808,0.06,195.65,195.64,71.34198311]
[1755253483402,0.06,195.65,195.64,76.45341226]
[1755253484009,0.06,195.67,195.64,50.45341226]
[1755253484213,0.06,195.67,195.66,34.23198311]
[1755253486105,0.06,195.67,195.66,8.23198311]
[1755253486318,0.78,195.67,195.65,8.23198311]
[1755253486625,0.72,195.66,195.65,26.0]
[1755253486795,0.06,195.67,195.65,34.23198311]
[1755253486995,0.06,195.67,195.66,8.23198311]
[1755253487593,0.06,195.67,195.66,8.88198311]
[1755253487905,0.06,195.67,195.66,8.23198311]
[1755253488722,0.06,195.67,195.66,8.88198311]
[1755253489806,0.06,195.67,195.66,8.23198311]
[1755253490796,0.06,195.67,195.66,8.88198311]
[1755253492321,0.06,195.67,195.66,8.23198311]
[1755253492615,0.06,195.67,195.66,8.88198311]
[1755253493820,0.06,195.67,195.66,13.99288978]
[1755253494322,0.06,195.68,195.66,13.99288978]
[1755253494524,0.06,195.69,195.68,26.0]
[1755253494712,0.06,195.69,195.68,70.65198311]
[1755253494915,0.06,195.69,195.68,71.30198311]
[1755253497228,0.06,195.69,195.68,70.65198311]
[1755253497403,0.06,195.69,195.68,71.30198311]
[1755253497927,0.06,195.69,195.68,34.88198311]
[1755253498123,0.78,195.69,195.68,34.23198311]
[1755253498316,0.78,195.69,195.66,34.26198311]
[1755253498497,0.72,195.68,195.67,8.23198311]
[1755253499506,0.06,195.69,195.67,8.23198311]
[1755253499722,0.06,195.69,195.66,26.03]
[1755253499723,0.06,195.69,195.68,8.23198311]
[1755253499930,5.17012315,195.69,195.68,8.23198311]
[1755253500311,5.89012315,195.69,195.66,26.03]
[1755253500625,0.72,195.68,195.66,34.26198311]
[1755253500825,0.72,195.68,195.66,26.03]
[1755253501003,0.72,195.68,195.67,34.23198311]
[1755253501404,8.59186199,195.69,195.67,34.23198311]
[1755253501628,8.59186199,195.69,195.68,8.23198311]
[1755253505324,8.59186199,195.69,195.67,34.23198311]
[1755253505527,9.30186199,195.69,195.67,34.23198311]
[1755253506338,5.88012315,195.69,195.67,34.23198311]
[1755253507035,0.06,195.69,195.67,34.23198311]
[1755253507411,0.06,195.69,195.68,8.23198311]
[1755253508722,3.48976316,195.69,195.68,8.23198311]
[1755253508916,4.19976316,195.69,195.66,0.03]
[1755253509113,5.1103843,195.68,195.66,44.62198311]
[1755253509316,5.1103843,195.68,195.67,8.23198311]
[1755253509938,8.54014746,195.68,195.67,8.23198311]
[1755253512442,8.54014746,195.68,195.67,8.26198311]
[1755253513637,3.42976316,195.68,195.67,8.26198311]
[1755253513819,3.42976316,195.68,195.67,8.95198311]
[1755253514022,8.54014746,195.68,195.67,8.26198311]
[1755253517047,3.42976316,195.68,195.67,45.23198311]
[1755253517230,3.42976316,195.68,195.67,50.34262858]
[1755253517430,0.06,195.69,195.67,45.23198311]
[1755253517728,0.06,195.69,195.68,34.92198311]
[1755253519944,0.06,195.69,195.68,14.03236741]
[1755253519945,3.50044329,195.69,195.68,14.03236741]
[1755253520334,3.50044329,195.69,195.68,8.92198311]
[1755253520648,3.50044329,195.69,195.68,14.03236741]
[1755253520949,3.50044329,195.69,195.68,8.92198311]
[1755253521254,9.32056644,195.69,195.68,44.51198311]
[1755253521440,0.06,195.69,195.68,44.51198311]
[1755253521854,5.17012315,195.69,195.68,44.51198311]
[1755253522038,5.17012315,195.69,195.68,8.23198311]
[1755253522242,5.88012315,195.69,195.68,8.23198311]
[1755253522439,5.88012315,195.69,195.67,0.03]
[1755253522634,5.88012315,195.69,195.67,8.26198311]
[1755253522635,5.17012315,195.69,195.67,8.26198311]
[1755253522852,5.1103843,195.68,195.67,26.03]
[1755253523049,0.06,195.69,195.67,71.23198311]
[1755253523349,0.06,195.69,195.68,8.92198311]
[1755253523564,0.06,195.69,195.68,0.69]
[1755253523859,0.06,195.69,195.68,8.92198311]
[1755253524353,3.50007841,195.69,195.68,8.92198311]
[1755253524538,8.61021244,195.69,195.67,26.03]
[1755253524741,0.71,195.68,195.67,34.26198311]
[1755253524940,5.1103843,195.68,195.67,34.26198311]
[1755253525348,8.55046271,195.68,195.67,26.03]
[1755253525558,8.55046271,195.68,195.67,34.26198311]
[1755253526156,3.44007841,195.68,195.67,34.95198311]
[1755253527863,9.26046271,195.68,195.67,34.26198311]
[1755253528366,8.55046271,195.68,195.67,34.26198311]
[1755253529246,8.55046271,195.68,195.67,26.03]
[1755253529247,9.26046271,195.68,195.67,26.03]
[1755253529447,8.55046271,195.68,195.67,34.26198311]
[1755253530065,8.55046271,195.68,195.67,26.03]
[1755253531757,8.55046271,195.68,195.67,0.03]
[1755253533355,8.55046271,195.68,195.67,8.26198311]
[1755253533965,9.27046271,195.68,195.66,0.03]
[1755253534277,8.95198311,195.67,195.66,0.03]
[1755253534565,0.14216157,195.66,195.65,0.03]
[1755253534871,9.09414468,195.66,195.65,0.03]
[1755253535049,0.86216157,195.66,195.65,0.03]
[1755253535364,14.20505135,195.66,195.65,0.03]
[1755253535752,17.64512976,195.66,195.65,0.03]
[1755253536072,9.41314665,195.66,195.65,0.03]
[1755253536264,17.64512976,195.66,195.65,0.03]
[1755253536465,9.41314665,195.66,195.65,0.03]
[1755253537067,8.37414468,195.65,195.64,0.03]
[1755253537267,24.20036025,195.65,195.64,1e-08]
[1755253537471,24.20036025,195.65,195.63,0.03]
[1755253537472,5.25359072,195.64,195.63,1e-08]
[1755253537670,13.48557383,195.64,195.63,1e-08]
[1755253537975,5.11142915,195.64,195.63,1e-08]
[1755253538185,5.11142915,195.64,195.63,8.23198312]
[1755253538367,8.55150756,195.64,195.63,1e-08]
[1755253538566,8.55150756,195.64,195.63,8.89198312]
[1755253538567,3.44007841,195.64,195.63,8.89198312]
[1755253539974,8.93230625,195.65,195.63,8.89198312]
[1755253540172,8.93230625,195.65,195.64,8.23198311]
[1755253540561,3.82104058,195.65,195.64,8.89198311]
[1755253540987,0.06,195.69,195.64,8.89198311]
[1755253541183,5.17021738,195.69,195.68,8.23198311]
[1755253541395,0.06,195.69,195.68,8.23198311]
[1755253541597,0.78,195.69,195.66,8.23198311]
[1755253541896,0.72,195.68,195.64,34.23198311]
[1755253542093,0.72,195.68,195.64,26.0]
[1755253542263,36.34,195.69,195.65,8.23198311]
[1755253542471,3.43861863,195.67,195.65,8.23198311]
[1755253543370,8.5495253,195.66,195.65,8.23198311]
[1755253543772,8.5495253,195.66,195.65,8.89198311]
[1755253544290,3.43861863,195.66,195.65,8.89198311]
[1755253545473,0.06,195.68,195.67,26.0]
[1755253545672,0.06,195.68,195.67,34.23198311]
[1755253546796,3.49874966,195.68,195.67,34.23198311]
[1755253547184,8.60913396,195.68,195.64,0.69]
[1755253547384,8.60913396,195.68,195.66,8.23198311]
[1755253547591,3.43874966,195.67,195.66,8.23198311]
[1755253548592,3.43874966,195.67,195.66,8.89198311]
[1755253548893,3.43874966,195.67,195.66,8.23198311]
[1755253549883,8.54939513,195.67,195.66,8.23198311]
[1755253550274,3.43874966,195.67,195.66,8.89198311]
[1755253550478,3.43874966,195.67,195.66,14.00288978]
[1755253551206,0.06,195.68,195.66,14.00288978]
[1755253551408,0.06,195.68,195.67,23.99819868]
[1755253552009,0.06,195.68,195.67,29.10884415]
[1755253552995,0.06,195.68,195.67,50.28262858]
[1755253553201,0.06,195.68,195.67,50.79369312]
[1755253553708,0.06,195.68,195.67,65.89990869]
[1755253554797,0.06,195.68,195.67,45.68304765]
[1755253555103,0.06,195.68,195.67,45.17198311]
[1755253555400,0.06,195.68,195.67,50.28262858]
[1755253557497,0.06,195.68,195.67,45.17198311]
[1755253558007,0.06,195.68,195.67,50.28262858]
[1755253559006,0.06,195.68,195.67,45.17198311]
[1755253560003,0.06,195.68,195.67,50.28262858]
[1755253560991,0.06,195.68,195.67,65.38884415]
[1755253561191,0.06,195.69,195.68,15.10621557]
[1755253561391,0.06,195.71,195.7,26.0]
[1755253561595,0.06,195.71,195.7,70.51198311]
[1755253561805,0.06,195.71,195.7,71.17198311]
[1755253563815,0.06,195.71,195.7,76.28184514]
[1755253564221,0.06,195.71,195.7,71.17198311]
[1755253564389,0.06,195.71,195.67,0.66]
[1755253564726,0.06,195.71,195.7,8.23198311]
[1755253565022,0.06,195.71,195.7,44.49198311]
[1755253565523,0.06,195.71,195.7,36.26]
[1755253565818,0.71,195.71,195.67,8.23198311]
[1755253565996,0.65,195.7,195.69,8.23198311]
[1755253566201,0.06,195.71,195.69,8.23198311]
[1755253566401,0.06,195.71,195.7,8.23198311]
[1755253566622,0.06,195.71,195.7,34.23198311]
[1755253571336,0.06,195.71,195.7,34.89198311]
[1755253571512,0.06,195.71,195.7,71.15198311]
[1755253572211,0.06,195.71,195.7,70.49198311]
[1755253572931,0.06,195.71,195.7,71.15198311]
[1755253573606,0.06,195.71,195.7,50.26184514]
[1755253573801,0.06,195.71,195.7,65.51022228]
[1755253574436,0.06,195.71,195.7,29.10806071]
[1755253574728,0.06,195.71,195.7,65.36806071]
[1755253576334,0.06,195.71,195.7,65.51022228]
[1755253576533,0.06,195.72,195.7,65.51022228]
[1755253576534,0.06,195.73,195.71,31.71234336]
[1755253576707,0.06,195.73,195.72,67.83018179]
[1755253576912,0.06,195.73,195.72,68.49018179]
[1755253577634,0.06,195.75,195.73,15.10621557]
[1755253577815,0.06,195.75,195.74,51.36621557]
[1755253578013,0.06,195.75,195.74,60.40036025]
[1755253578212,0.06,195.75,195.74,65.50917806]
[1755253582833,0.71,195.75,195.7,0.69]
[1755253583020,0.71,195.75,195.74,8.23198311]
[1755253583208,0.71,195.75,195.74,70.49198311]
[1755253583416,0.06,195.75,195.74,70.49198311]
[1755253584027,0.06,195.75,195.74,71.15198311]
[1755253584239,0.06,195.75,195.74,45.15198311]
[1755253584636,0.06,195.75,195.74,44.49198311]
[1755253586338,0.71,195.75,195.74,44.49198311]
[1755253586541,0.71,195.75,195.74,70.49198311]
[1755253586739,0.06,195.75,195.74,70.49198311]
[1755253587116,0.06,195.75,195.74,71.15198311]
[1755253587314,0.06,195.75,195.74,44.49198311]
[1755253588642,0.06,195.75,195.74,34.23198311]
[1755253588939,0.06,195.75,195.74,70.49198311]
[1755253591044,0.06,195.75,195.74,50.31080092]
[1755253591245,0.06,195.75,195.74,65.55917806]
[1755253591430,0.06,195.75,195.74,60.30819868]
[1755253592839,0.06,195.75,195.74,65.41701649]
[1755253594458,0.06,195.75,195.74,60.30819868]
[1755253594652,0.78,195.75,195.71,18.9]
[1755253594857,0.06,195.75,195.73,8.23198311]
[1755253595056,0.72,195.74,195.73,34.23198311]
[1755253595254,0.72,195.74,195.73,44.47198311]
[1755253595558,0.06,195.75,195.73,70.47198311]
[1755253595757,0.78,195.75,195.74,8.23198311]
[1755253596058,4.21500468,195.75,195.74,8.23198311]
[1755253596629,4.21500468,195.75,195.7,8.26198311]
[1755253596831,0.72,195.74,195.71,36.24]
[1755253597048,0.72,195.73,195.71,44.47198311]
[1755253597268,0.72,195.72,195.71,8.23198311]
[1755253597444,0.72,195.72,195.71,36.24]
[1755253597845,5.82933987,195.72,195.71,44.47198311]
[1755253598158,5.10933987,195.72,195.71,44.47198311]
[1755253598937,5.10907883,195.73,195.71,44.47198311]
[1755253599833,5.82907883,195.73,195.71,44.47198311]
[1755253600358,3.43609216,195.72,195.71,44.47198311]
[1755253600559,3.43609216,195.72,195.71,50.29158405]
[1755253601267,0.06,195.75,195.74,26.0]
[1755253601451,0.06,195.75,195.74,70.47198311]
[1755253601973,0.06,195.75,195.74,86.28819868]
[1755253603046,0.06,195.75,195.74,91.39701649]
[1755253604782,0.06,195.75,195.74,34.94198311]
[1755253604949,0.06,195.75,195.74,70.47198311]
[1755253605150,0.06,195.75,195.74,71.18198311]
[1755253605863,0.06,195.75,195.74,76.29080092]
[1755253607949,0.06,195.75,195.74,91.39701649]
[1755253608763,0.06,195.75,195.74,34.23198311]
[1755253608960,0.06,195.75,195.74,70.47198311]
[1755253609378,0.06,195.75,195.74,71.18198311]
[1755253610082,0.06,195.75,195.74,70.47198311]
[1755253611280,0.06,195.75,195.74,75.58080092]
[1755253611465,0.06,195.75,195.74,76.29080092]
[1755253614866,0.06,195.75,195.74,91.39701649]
[1755253615368,0.06,195.77,195.74,91.39701649]
[1755253615574,0.06,195.77,195.76,23.33819868]
[1755253615756,0.06,195.77,195.76,59.57819868]
[1755253616168,0.06,195.77,195.76,60.28819868]
[1755253616688,0.06,195.77,195.76,65.39649455]
[1755253621086,0.06,195.77,195.76,44.45198311]
[1755253624894,0.06,195.77,195.76,8.23198311]
[1755253625072,0.06,195.77,195.76,44.45198311]
[1755253625073,0.78,195.77,195.76,44.45198311]
[1755253625469,0.06,195.77,195.76,44.45198311]
[1755253625793,0.06,195.77,195.76,65.48865612]
[1755253625995,0.06,195.79,195.78,26.0]
[1755253626200,0.06,195.79,195.78,86.06897608]
[1755253626391,0.06,195.79,195.78,86.74897608]
[1755253626893,5.88754129,195.79,195.77,8.23198311]
[1755253627095,5.88754129,195.79,195.78,36.22]
[1755253627096,0.06,195.79,195.78,36.22]
[1755253627400,0.06,195.79,195.78,44.45198311]
[1755253627597,0.06,195.79,195.78,60.23819868]
[1755253629300,0.06,195.79,195.78,65.34597271]
[1755253630097,0.06,195.79,195.78,65.48813428]
[1755253631207,0.06,195.79,195.78,64.66597271]
[1755253631910,0.06,195.79,195.78,65.34597271]
[1755253633383,0.06,195.79,195.78,64.66597271]
[1755253633583,0.06,195.79,195.78,59.55819868]
[1755253633878,0.06,195.79,195.78,34.23198311]
[1755253634085,0.78,195.79,195.77,8.23198311]
[1755253634390,0.78,195.79,195.78,36.22]
[1755253634601,0.78,195.79,195.78,62.22]
[1755253634798,0.78,195.79,195.78,36.22]
[1755253635099,5.88751315,195.79,195.78,36.22]
[1755253635299,5.88751315,195.79,195.74,0.03]
[1755253635300,5.88751315,195.79,195.77,44.45198311]
[1755253635503,5.16751315,195.79,195.77,44.45198311]
[1755253635706,5.88751315,195.79,195.78,8.23198311]
[1755253636204,5.88751315,195.79,195.77,44.45198311]
[1755253636615,0.72,195.78,195.77,36.22]
[1755253636786,0.72,195.78,195.77,44.45198311]
[1755253637187,0.72,195.78,195.74,0.03]
[1755253637188,5.10803493,195.77,195.75,36.22]
[1755253637393,0.72,195.76,195.74,36.25]
[1755253637591,0.72,195.75,195.74,36.25]
[1755253638087,4.15595464,195.75,195.74,36.25]
[1755253639093,9.26451147,195.75,195.74,36.25]
[1755253640194,9.26451147,195.75,195.74,0.03]
[1755253642396,8.54451147,195.75,195.74,0.03]
[1755253642819,9.26451147,195.75,195.74,0.03]
[1755253645521,3.43595464,195.75,195.74,0.03]
[1755253645695,3.43595464,195.75,195.74,8.26198311]
[1755253645897,3.43595464,195.75,195.74,8.94198311]
[1755253646296,0.06,195.77,195.76,26.0]
[1755253646515,0.06,195.77,195.76,34.23198311]
[1755253647297,3.49515045,195.77,195.76,34.23198311]
[1755253647621,3.49515045,195.77,195.76,34.91198311]
[1755253648712,3.49515045,195.77,195.76,34.23198311]
[1755253652125,0.06,195.77,195.76,34.23198311]
[1755253653636,0.06,195.77,195.76,34.89198311]
[1755253654207,0.06,195.77,195.76,34.23198311]
[1755253654402,0.75,195.77,195.76,34.23198311]
[1755253654620,0.75,195.77,195.74,0.03]
[1755253654810,4.18518216,195.77,195.74,0.03]
[1755253655015,8.23198311,195.76,195.74,0.03]
[1755253655532,0.69,195.75,195.74,0.03]
[1755253655903,4.12518216,195.75,195.74,0.03]
[1755253656306,17.4657221,195.75,195.74,0.03]
[1755253658428,17.60788367,195.75,195.74,0.03]
[1755253658634,17.60788367,195.75,195.72,1e-08]
[1755253658635,23.48036025,195.73,195.72,1e-08]
[1755253658842,44.59414468,195.73,195.72,1e-08]
[1755253659131,60.39036025,195.73,195.72,1e-08]
[1755253659629,68.93462124,195.73,195.72,1e-08]
[1755253662814,8.54426099,195.73,195.72,1e-08]
[1755253665123,9.23426099,195.73,195.72,1e-08]
[1755253665507,8.54426099,195.73,195.72,1e-08]
[1755253667248,9.23426099,195.73,195.72,1e-08]
[1755253668337,8.54426099,195.73,195.72,1e-08]
[1755253670450,3.43518216,195.73,195.72,8.89198312]
[1755253671024,3.43518216,195.76,195.72,8.89198312]
[1755253671338,3.43518216,195.76,195.75,8.23198311]
[1755253671954,8.54347803,195.76,195.75,8.23198311]
[1755253672248,3.43518216,195.76,195.75,8.23198311]
[1755253672452,3.43518216,195.76,195.73,0.66]
[1755253672639,3.43518216,195.76,195.75,8.23198311]
[1755253672937,8.54347803,195.76,195.75,8.23198311]
[1755253673933,3.43518216,195.76,195.75,8.23198311]
[1755253675259,3.43518216,195.76,195.75,8.89198311]
[1755253675553,3.43518216,195.76,195.75,14.00053994]
[1755253676534,0.06,195.76,195.75,14.00053994]
[1755253678144,0.06,195.76,195.75,29.10675551]
[1755253678958,0.06,195.76,195.75,8.89198311]
[1755253679146,0.06,195.76,195.75,45.09198311]
[1755253680146,0.06,195.76,195.74,36.2]
[1755253680861,0.06,195.76,195.75,8.23198311]
[1755253681064,0.06,195.76,195.75,8.95198311]
[1755253681635,0.06,195.76,195.75,0.72]
[1755253681855,0.06,195.76,195.75,8.95198311]
[1755253686740,0.06,195.76,195.75,8.23198311]
[1755253687352,0.06,195.76,195.75,8.95198311]
[1755253688570,0.06,195.76,195.75,8.23198311]
[1755253690563,0.06,195.76,195.75,8.95198311]
[1755253692384,0.06,195.76,195.75,8.23198311]
[1755253693389,0.06,195.77,195.75,29.67761119]
[1755253693587,0.06,195.77,195.76,44.43198311]
[1755253693740,0.06,195.77,195.76,45.15198311]
[1755253693947,0.06,195.77,195.76,50.26027898]
[1755253694147,0.06,195.79,195.78,26.0]
[1755253694371,0.06,195.79,195.78,85.53819868]
[1755253694588,0.06,195.79,195.78,86.25819868]
[1755253695473,0.06,195.8,195.78,78.02621557]
[1755253695678,0.06,195.8,195.79,8.95198311]
[1755253695844,0.06,195.8,195.79,24.05819868]
[1755253696048,0.06,195.8,195.79,29.16571183]
[1755253696246,0.06,195.83,195.82,41.10621557]
[1755253696476,0.06,195.85,195.83,15.10621557]
[1755253696772,0.06,195.87,195.86,26.0]
[1755253696982,0.06,195.87,195.86,78.70396622]
[1755253697150,0.06,195.87,195.86,79.42396622]
[1755253697346,0.06,195.87,195.86,71.19198311]
[1755253697572,0.06,195.87,195.86,70.47198311]
[1755253697968,0.06,195.87,195.86,71.19198311]
[1755253698169,0.06,195.87,195.86,70.47198311]
[1755253698356,0.78,195.87,195.86,70.47198311]
[1755253698553,0.06,195.87,195.86,70.47198311]
[1755253699366,0.06,195.87,195.86,76.29767084]
[1755253699557,0.06,195.87,195.86,84.52965395]
[1755253699752,0.06,195.87,195.86,71.19198311]
[1755253700077,0.06,195.87,195.86,70.47198311]
[1755253700480,0.06,195.87,195.86,71.19198311]
[1755253701075,0.06,195.87,195.86,70.47198311]
[1755253702552,0.78,195.87,195.82,8.23198311]
[1755253702755,0.78,195.87,195.82,36.26]
[1755253702961,8.23198311,195.86,195.81,36.26]
[1755253703385,0.72,195.85,195.81,36.26]
[1755253703855,0.72,195.84,195.81,44.49198311]
[1755253704053,5.10568773,195.86,195.81,44.49198311]
[1755253704283,4.13954816,195.85,195.81,44.49198311]
[1755253704454,3.41954816,195.85,195.81,44.49198311]
[1755253704857,0.72,195.84,195.81,44.49198311]
[1755253705269,8.52523589,195.86,195.81,44.49198311]
[1755253705678,0.33,195.85,195.81,44.49198311]
[1755253706069,3.74954816,195.85,195.81,44.49198311]
[1755253706272,5.43620915,195.84,195.81,44.49198311]
[1755253706479,5.43620915,195.84,195.81,36.26]
[1755253706658,5.10620915,195.84,195.81,36.26]
[1755253706877,0.33,195.83,195.79,36.22]
[1755253707063,0.33,195.82,195.79,36.22]
[1755253707463,26.43371513,195.84,195.79,36.22]
[1755253707671,18.20173202,195.84,195.79,36.22]
[1755253707963,0.33,195.83,195.79,36.22]
[1755253708162,5.10699147,195.81,195.79,36.22]
[1755253708765,5.10699147,195.81,195.78,18.09641257]
[1755253708766,0.33,195.8,195.78,9.86442946]
[1755253709064,8.23198311,195.79,195.78,9.89442946]
[1755253709385,5.10699147,195.81,195.78,18.12641257]
[1755253709601,5.10699147,195.81,195.79,8.95198311]
[1755253709990,5.10699147,195.81,195.79,0.72]
[1755253710177,5.10699147,195.81,195.79,8.95198311]
[1755253710374,5.10646989,195.83,195.8,8.23198311]
[1755253710576,5.10646989,195.83,195.81,8.23198311]
[1755253710886,3.4242527,195.82,195.81,8.23198311]
[1755253711375,3.4242527,195.82,195.81,8.95198311]
[1755253711775,3.4242527,195.82,195.81,36.2]
[1755253712091,3.4242527,195.82,195.81,45.15198311]
[1755253712692,3.4242527,195.82,195.81,50.21868585]
[1755253713486,3.4242527,195.84,195.81,50.21868585]
[1755253713701,3.4242527,195.84,195.83,13.29868585]
[1755253713901,3.4242527,195.84,195.83,49.47868585]
[1755253714108,3.4242527,195.84,195.83,50.19868585]
[1755253715485,0.06,195.85,195.83,50.19868585]
[1755253715681,0.06,195.85,195.84,13.29868585]
[1755253716411,0.06,195.85,195.84,14.01868585]
[1755253716802,3.48830111,195.85,195.84,14.01868585]
[1755253717280,3.48830111,195.85,195.84,19.124895]
[1755253717902,0.06,195.85,195.84,19.124895]
[1755253718492,0.06,195.85,195.83,41.28642891]
[1755253718788,0.06,195.85,195.84,40.01868585]
[1755253719878,0.06,195.85,195.84,45.124895]
[1755253720390,0.06,195.85,195.84,19.124895]
[1755253720911,0.06,195.85,195.84,14.01868585]
[1755253721111,0.06,195.85,195.84,19.124895]
[1755253723107,0.06,195.85,195.84,34.23111057]
[1755253723607,0.06,195.85,195.84,19.124895]
[1755253723816,0.06,195.85,195.81,26.72]
[1755253724019,0.06,195.85,195.84,39.29868585]
[1755253724313,0.06,195.85,195.84,75.47868585]
[1755253724512,0.06,195.85,195.84,62.18]
[1755253724709,0.06,195.85,195.84,75.47868585]
[1755253724917,0.06,195.85,195.84,76.19868585]
[1755253725300,3.48815288,195.85,195.84,76.19868585]
[1755253725512,3.48815288,195.85,195.84,75.47868585]
[1755253726715,3.48815288,195.85,195.84,76.19868585]
[1755253727527,9.2741013,195.85,195.84,26.0]
[1755253727716,9.2741013,195.85,195.83,36.18]
[1755253728187,3.48815288,195.85,195.84,13.29868585]
[1755253728387,0.06,195.85,195.84,13.29868585]
[1755253729712,5.16594842,195.85,195.84,13.29868585]
[1755253730118,0.06,195.85,195.84,13.29868585]
[1755253730614,3.48948707,195.85,195.84,13.29868585]
[1755253730817,3.48948707,195.85,195.84,14.01868585]
[1755253731193,3.48948707,195.85,195.84,19.124895]
[1755253731719,3.48948707,195.85,195.84,0.72]
[1755253731924,3.48948707,195.85,195.84,14.01868585]
[1755253732426,0.06,195.85,195.84,14.01868585]
[1755253732715,0.06,195.85,195.84,8.93046662]
[1755253737213,0.06,195.85,195.84,8.21046662]
[1755253737511,0.06,195.85,195.84,8.93046662]